fUST/lending_fUST_20250825
["ID","MTS","AMOUNT","RATE_DAILY","PERIOD"]
[381223839,1756100948851,-2015.93725022,0.00031616,2]
[381223840,1756100948873,-70833.69639688,0.00031626,2]
[381223879,1756101031963,-199.0,0.00030732,120]
[381223881,1756101031973,-219.62368526,0.00030822,10]
[381223883,1756101031984,-824.26587541,0.00030822,10]
[381223908,1756101032148,-750.50043933,0.00030822,10]
[381223911,1756101032158,-259.0,0.00030831,2]
[381223914,1756101032168,-1455.28143867,0.00030832,20]
[381223918,1756101032179,-1162.02484784,0.00030832,20]
[381223920,1756101032190,-12137.59391106,0.00030832,20]
[381224209,1756101037849,-4117.04612735,0.00030832,20]
[381224211,1756101037861,-798.52629353,0.00030832,20]
[381224212,1756101037875,-717.12731951,0.00030832,20]
[381224213,1756101037887,-1577.37402284,0.00030832,20]
[381224214,1756101037907,-6756.71570394,0.00030832,20]
[381224215,1756101037969,-115360.01361229,0.00030832,20]
[381224216,1756101037980,-1219.23860058,0.00030832,120]
[381224217,1756101037989,-380.8721413,0.00030832,5]
[381224219,1756101037999,-170.25,0.000309,7]
[381224220,1756101038008,-47702.28625742,0.00031626,2]
[381224221,1756101038018,-13253.9417638,0.00031626,2]
[381224222,1756101038027,-559.7117529,0.00031673,5]
[381224223,1756101038036,-503.87112901,0.00031673,5]
[381224224,1756101038045,-504.46664483,0.00031673,5]
[381224225,1756101038054,-500.0,0.00031673,5]
[381224226,1756101038063,-500.0,0.00031673,5]
[381224227,1756101038073,-501.88821493,0.00031673,5]
[381224228,1756101038083,-500.0,0.00031673,5]
[381224229,1756101038093,-3722.54,0.000317,7]
[381224230,1756101038102,-12128.55,0.000317,7]
[381224231,1756101038111,-2000.0,0.00031979,7]
[381224232,1756101038121,-36266.0996814,0.0003198,2]
[381224233,1756101038133,-1007.96862511,0.0003198,2]
[381224234,1756101038142,-892.66,0.00032192,3]
[381224235,1756101038152,-622.82,0.00032192,3]
[381224236,1756101038161,-399.64,0.00032192,3]
[381224237,1756101038170,-507.94210207,0.00032221,5]
[381224238,1756101038180,-217.12848614,0.00032263,2]
[381224239,1756101038189,-500.76034536,0.00032317,5]
[381224240,1756101038199,-160.0,0.00032319,2]
[381224241,1756101038209,-216.04034502,0.00032319,2]
[381224242,1756101038219,-1072.61,0.00032876,120]
[381224243,1756101038228,-652.76729633,0.00033,2]
[381224244,1756101038237,-163.009185,0.00033165,2]
[381224245,1756101038247,-252.17057441,0.00033304,2]
[381224246,1756101038257,-505.6112394,0.00033493,5]
[381224247,1756101038266,-500.0,0.00033493,5]
[381224248,1756101038276,-500.0,0.00033493,5]
[381224249,1756101038286,-637.29739791,0.0003362,5]
[381224250,1756101038296,-1000.0,0.00034041,5]
[381224251,1756101038305,-501.68822073,0.00034041,5]
[381224252,1756101038314,-1072.61,0.0003452,120]
[381224253,1756101038323,-1500.0,0.00034589,5]
[381224254,1756101038332,-444.95264381,0.00034655,5]
[381224255,1756101038342,-507.70849922,0.00034655,5]
[381224256,1756101038351,-2000.0,0.00035137,5]
[381224257,1756101038360,-500.0,0.00035273,5]
[381224258,1756101038369,-500.0,0.00035273,5]
[381224259,1756101038380,-502.53886774,0.00035273,5]
[381224260,1756101038389,-502.39603903,0.00035273,5]
[381224261,1756101038399,-500.0,0.00035273,5]
[381224262,1756101038408,-506.39453397,0.00035273,5]
[381224263,1756101038417,-500.0,0.00035273,5]
[381224264,1756101038427,-501.60557537,0.00035273,5]
[381224265,1756101038436,-169.9133702,0.00035273,5]
[381224266,1756101038445,-500.0,0.00035273,5]
[381224267,1756101038454,-502.27128288,0.00035273,5]
[381224268,1756101038464,-12128.55,0.000353,14]
[381224269,1756101038473,-151.0,0.000353,12]
[381224270,1756101038486,-6174.68,0.000353,14]
[381224271,1756101038495,-160.0,0.0003548,2]
[381224272,1756101038505,-156.506356,0.00035566,5]
[381224273,1756101038514,-36266.0996814,0.00035675,3]
[381224274,1756101038525,-1007.96862511,0.00035675,3]
[381224275,1756101038535,-1353.83764665,0.00035685,5]
[381224276,1756101038544,-1000.0,0.00035821,5]
[381224277,1756101038554,-1000.0,0.00035821,5]
[381224278,1756101038563,-992.95915013,0.00035821,5]
[381224279,1756101038572,-280.60520724,0.00035821,5]
[381224280,1756101038582,-156.0,0.000359,120]
[381224281,1756101038591,-232.4766599,0.0003599,3]
[381224282,1756101038600,-844.86965257,0.0003599,3]
[381224283,1756101038610,-376.30788339,0.0003599,3]
[381224284,1756101038620,-3722.54,0.00036,7]
[381224286,1756101038632,-151.0,0.00036,30]
[381224287,1756101038641,-194.214142,0.00036,30]
[381224289,1756101038651,-151.0,0.00036,30]
[381224292,1756101038660,-151.0,0.00036,30]
[381224293,1756101038670,-465.752906,0.00036,30]
[381224295,1756101038679,-151.0,0.00036,30]
[381224297,1756101038689,-465.752906,0.00036,30]
[381224299,1756101038698,-465.752906,0.00036,30]
[381224301,1756101038707,-151.0,0.00036,30]
[381224303,1756101038716,-465.752906,0.00036,30]
[381224314,1756101038934,-151.0,0.00036,30]
[381224315,1756101038944,-151.0,0.00036,30]
[381224316,1756101038955,-151.0,0.00036,30]
[381224317,1756101038964,-151.0,0.00036,30]
[381224318,1756101038973,-214.411713,0.00036,30]
[381224319,1756101038983,-151.0,0.00036,30]
[381224320,1756101038992,-151.0,0.00036,30]
[381224321,1756101039002,-151.0,0.00036,30]
[381224322,1756101039011,-151.0,0.00036,30]
[381224323,1756101039021,-151.0,0.00036,30]
[381224324,1756101039031,-151.0,0.00036,30]
[381224325,1756101039040,-151.0,0.00036,30]
[381224326,1756101039050,-152.848781,0.00036,30]
[381224327,1756101039059,-151.0,0.00036,30]
[381224328,1756101039068,-152.848781,0.00036,30]
[381224330,1756101039078,-152.848781,0.00036,30]
[381224332,1756101039087,-152.848781,0.00036,30]
[381224333,1756101039096,-151.0,0.00036,30]
[381224334,1756101039106,-270.481744,0.00036,30]
[381224335,1756101039115,-242.190425,0.00036,30]
[381224336,1756101039125,-242.190425,0.00036,30]
[381224337,1756101039134,-242.190425,0.00036,30]
[381224338,1756101039144,-242.190425,0.00036,30]
[381224339,1756101039153,-239.61430946,0.00036028,2]
[381224340,1756101039162,-500.0,0.0003605,5]
[381224341,1756101039172,-500.0,0.0003605,5]
[381224342,1756101039181,-350.52803341,0.0003605,5]
[381224344,1756101039191,-156.506356,0.00036055,5]
[381224346,1756101039200,-500.0,0.00036063,2]
[381224348,1756101039210,-500.0,0.00036063,5]
[381224350,1756101039219,-506.15565783,0.00036063,5]
[381224352,1756101039229,-501.57206833,0.00036063,5]
[381224354,1756101039238,-1072.61,0.00036164,120]
[381224356,1756101039247,-151.0,0.00036166,30]
[381224358,1756101039257,-151.0,0.00036166,30]
[381224360,1756101039266,-151.0,0.00036166,30]
[381224362,1756101039275,-151.187935,0.00036166,30]
[381224364,1756101039285,-151.0,0.00036166,30]
[381224366,1756101039294,-151.0,0.00036166,30]
[381224368,1756101039304,-151.0,0.00036166,30]
[381224369,1756101039314,-151.0,0.00036166,30]
[381224370,1756101039324,-151.0,0.00036166,30]
[381224371,1756101039334,-152.02618,0.00036166,30]
[381224372,1756101039343,-151.0,0.00036166,30]
[381224373,1756101039355,-151.0,0.00036166,30]
[381224374,1756101039367,-151.0,0.00036166,30]
[381224375,1756101039379,-151.0,0.00036166,30]
[381224376,1756101039389,-288.269151,0.00036166,30]
[381224377,1756101039399,-151.0,0.00036166,30]
[381224378,1756101039409,-151.0,0.00036166,30]
[381224379,1756101039419,-151.0,0.00036166,30]
[381224380,1756101039429,-187.821714,0.00036166,30]
[381224381,1756101039438,-151.0,0.00036166,30]
[381224382,1756101039448,-151.0,0.00036166,30]
[381224383,1756101039457,-151.0,0.00036166,30]
[381224384,1756101039466,-151.0,0.00036166,30]
[381224385,1756101039476,-151.0,0.00036166,30]
[381224386,1756101039489,-152.45883,0.00036166,30]
[381224387,1756101039499,-151.0,0.00036166,30]
[381224388,1756101039508,-234.348086,0.00036166,30]
[381224389,1756101039519,-151.0,0.00036166,30]
[381224390,1756101039528,-151.379277,0.00036166,30]
[381224391,1756101039538,-151.0,0.00036166,30]
[381224392,1756101039548,-193.837933,0.00036166,30]
[381224393,1756101039558,-187.78151,0.00036166,30]
[381224394,1756101039568,-193.837933,0.00036166,30]
[381224395,1756101039577,-187.78151,0.00036166,30]
[381224396,1756101039587,-193.837933,0.00036166,30]
[381224397,1756101039596,-187.78151,0.00036166,30]
[381224398,1756101039606,-160.0,0.00036166,30]
[381224399,1756101039615,-529.29072822,0.00036166,30]
[381224400,1756101039624,-193.837933,0.00036166,30]
[381224401,1756101039635,-417.15472785,0.00036166,30]
[381224402,1756101039645,-187.78151,0.00036166,30]
[381224403,1756101039654,-168.04294,0.00036166,30]
[381224404,1756101039663,-151.0,0.00036166,30]
[381224405,1756101039673,-151.0,0.00036166,30]
[381224406,1756101039683,-151.0,0.00036166,30]
[381224407,1756101039692,-151.0,0.00036166,30]
[381224408,1756101039702,-151.0,0.00036166,30]
[381224409,1756101039711,-151.0,0.00036166,30]
[381224410,1756101039721,-151.0,0.00036166,30]
[381224411,1756101039731,-208.258091,0.00036166,30]
[381224412,1756101039740,-208.258091,0.00036166,30]
[381224413,1756101039749,-208.258091,0.00036166,30]
[381224414,1756101039759,-219.152826,0.00036166,30]
[381224415,1756101039768,-151.444016,0.00036166,14]
[381224416,1756101039778,-208.258091,0.00036166,30]
[381224417,1756101039787,-151.0,0.00036166,30]
[381224418,1756101039797,-219.152826,0.00036166,30]
[381224419,1756101039806,-219.152826,0.00036166,30]
[381224420,1756101039815,-151.0,0.00036166,30]
[381224421,1756101039825,-219.152826,0.00036166,30]
[381224422,1756101039834,-151.0,0.00036166,30]
[381224423,1756101039843,-151.0,0.00036166,30]
[381224424,1756101039853,-272.110917,0.00036166,30]
[381224425,1756101039862,-457.030685,0.00036166,30]
[381224426,1756101039871,-151.0,0.00036166,30]
[381224427,1756101039882,-272.110917,0.00036166,30]
[381224428,1756101039892,-457.030685,0.00036166,30]
[381224429,1756101039902,-272.110917,0.00036166,30]
[381224430,1756101039911,-272.110917,0.00036166,30]
[381224431,1756101039920,-457.030685,0.00036166,30]
[381224432,1756101039930,-457.030685,0.00036166,30]
[381224433,1756101039939,-36266.0996814,0.00036174,3]
[381224434,1756101039950,-1007.96862511,0.00036174,3]
[381224435,1756101039959,-151.0,0.00036176,30]
[381224436,1756101039969,-151.0,0.00036176,30]
[381224437,1756101039979,-151.0,0.00036176,30]
[381224438,1756101039988,-151.0,0.00036176,30]
[381224439,1756101039998,-151.0,0.00036176,30]
[381224440,1756101040007,-151.0,0.00036176,30]
[381224441,1756101040017,-158.096637,0.00036176,30]
[381224442,1756101040027,-158.096637,0.00036176,30]
[381224443,1756101040036,-158.096637,0.00036176,30]
[381224444,1756101040046,-151.0,0.00036176,30]
[381224445,1756101040055,-158.096637,0.00036176,30]
[381224446,1756101040064,-151.0,0.00036176,30]
[381224447,1756101040073,-151.0,0.00036176,30]
[381224448,1756101040082,-211.787526,0.00036176,30]
[381224449,1756101040091,-152.219449,0.00036176,30]
[381224450,1756101040100,-151.0,0.00036176,30]
[381224451,1756101040109,-151.0,0.00036176,30]
[381224452,1756101040119,-151.0,0.00036176,30]
[381224453,1756101040130,-151.0,0.00036176,30]
[381224454,1756101040139,-151.0,0.00036176,30]
[381224455,1756101040148,-151.0,0.00036176,30]
[381224456,1756101040157,-151.0,0.00036176,30]
[381224457,1756101040167,-151.0,0.00036176,30]
[381224458,1756101040176,-151.0,0.00036176,30]
[381224459,1756101040185,-151.0,0.00036176,30]
[381224460,1756101040194,-151.0,0.00036176,30]
[381224461,1756101040203,-151.0,0.00036176,15]
[381224462,1756101040213,-151.0,0.00036176,15]
[381224463,1756101040222,-151.0,0.00036176,15]
[381224464,1756101040232,-151.0,0.00036176,30]
[381224465,1756101040242,-151.0,0.00036176,30]
[381224466,1756101040251,-108798.299044,0.00036176,3]
[381224467,1756101040260,-3023.90587533,0.00036176,3]
[381224468,1756101040270,-237.289253,0.00036184,30]
[381224469,1756101040279,-237.289253,0.00036184,30]
[381224470,1756101040288,-621.295102,0.00036184,30]
[381224471,1756101040298,-237.289253,0.00036184,30]
[381224472,1756101040307,-224.184105,0.00036184,30]
[381224473,1756101040317,-621.295102,0.00036184,30]
[381224474,1756101040326,-237.289253,0.00036184,30]
[381224475,1756101040337,-224.184105,0.00036184,30]
[381224476,1756101040346,-621.295102,0.00036184,30]
[381224477,1756101040355,-224.184105,0.00036184,30]
[381224478,1756101040366,-621.295102,0.00036184,30]
[381224479,1756101040375,-13253.9417638,0.00036184,2]
[381224480,1756101040385,-202.22517631,0.00036185,10]
[381224481,1756101040394,-152.169073,0.00036186,30]
[381224482,1756101040403,-151.0,0.00036186,14]
[381224483,1756101040413,-151.0,0.00036186,30]
[381224484,1756101040422,-251.391073,0.00036186,30]
[381224485,1756101040431,-152.449895,0.00036186,30]
[381224486,1756101040441,-151.0,0.00036186,30]
[381224487,1756101040450,-151.0,0.00036186,30]
[381224488,1756101040459,-151.0,0.00036186,30]
[381224489,1756101040469,-151.0,0.00036186,30]
[381224490,1756101040479,-151.0,0.00036186,30]
[381224491,1756101040489,-151.0,0.00036186,30]
[381224492,1756101040499,-151.0,0.00036186,30]
[381224493,1756101040509,-188.857046,0.00036186,30]
[381224494,1756101040518,-158.860453,0.00036186,30]
[381224495,1756101040528,-153.365074,0.00036186,30]
[381224496,1756101040538,-151.0,0.00036186,30]
[381224497,1756101040547,-151.0,0.00036186,30]
[381224498,1756101040557,-266.296,0.00036186,30]
[381224499,1756101040567,-151.0,0.00036186,30]
[381224500,1756101040576,-151.0,0.00036186,30]
[381224501,1756101040585,-151.0,0.00036186,30]
[381224502,1756101040595,-152.324796,0.00036186,30]
[381224503,1756101040604,-151.0,0.00036186,30]
[381224504,1756101040613,-151.0,0.00036186,30]
[381224505,1756101040623,-151.0,0.00036186,30]
[381224506,1756101040633,-151.0,0.00036186,30]
[381224507,1756101040643,-179.31642,0.00036186,30]
[381224508,1756101040652,-151.0,0.00036186,30]
[381224509,1756101040662,-151.0,0.00036186,30]
[381224510,1756101040671,-151.0,0.00036186,30]
[381224511,1756101040680,-151.0,0.00036186,30]
[381224512,1756101040689,-151.0,0.00036186,30]
[381224513,1756101040698,-151.0,0.00036186,30]
[381224514,1756101040708,-151.54347,0.00036186,30]
[381224515,1756101040718,-151.0,0.00036186,30]
[381224516,1756101040727,-151.0,0.00036186,30]
[381224517,1756101040736,-151.0,0.00036186,30]
[381224518,1756101040746,-151.0,0.00036186,30]
[381224519,1756101040755,-151.0,0.00036186,30]
[381224520,1756101040764,-151.0,0.00036186,30]
[381224521,1756101040774,-201.438149,0.00036186,30]
[381224522,1756101040783,-151.0,0.00036186,30]
[381224523,1756101040793,-151.0,0.00036186,30]
[381224524,1756101040802,-152.602771,0.00036186,30]
[381224525,1756101040811,-151.0,0.00036186,30]
[381224526,1756101040820,-193.837933,0.00036186,30]
[381224527,1756101040829,-187.78151,0.00036186,30]
[381224528,1756101040839,-193.837933,0.00036186,30]
[381224529,1756101040848,-187.78151,0.00036186,30]
[381224530,1756101040857,-193.837933,0.00036186,30]
[381224531,1756101040867,-187.78151,0.00036186,30]
[381224532,1756101040877,-193.837933,0.00036186,30]
[381224533,1756101040886,-187.78151,0.00036186,30]
[381224534,1756101040895,-151.0,0.00036186,30]
[381224535,1756101040905,-278.481175,0.00036186,30]
[381224536,1756101040914,-151.0,0.00036186,30]
[381224537,1756101040923,-151.0,0.00036186,30]
[381224538,1756101040933,-152.392532,0.00036186,30]
[381224539,1756101040942,-151.0,0.00036186,30]
[381224540,1756101040951,-151.0,0.00036186,30]
[381224541,1756101040960,-208.258091,0.00036186,30]
[381224542,1756101040970,-208.258091,0.00036186,30]
[381224543,1756101040979,-208.258091,0.00036186,30]
[381224544,1756101040988,-219.152826,0.00036186,30]
[381224545,1756101040997,-208.258091,0.00036186,30]
[381224546,1756101041007,-151.0,0.00036186,30]
[381224547,1756101041016,-219.152826,0.00036186,30]
[381224548,1756101041026,-219.152826,0.00036186,30]
[381224549,1756101041035,-151.0,0.00036186,30]
[381224550,1756101041045,-219.152826,0.00036186,30]
[381224551,1756101041054,-277.276485,0.00036186,30]
[381224552,1756101041063,-151.501775,0.00036186,30]
[381224553,1756101041072,-272.110917,0.00036186,30]
[381224554,1756101041081,-457.030685,0.00036186,30]
[381224555,1756101041091,-167.707309,0.00036186,30]
[381224556,1756101041100,-272.110917,0.00036186,30]
[381224557,1756101041109,-457.030685,0.00036186,30]
[381224558,1756101041118,-272.110917,0.00036186,30]
[381224559,1756101041127,-272.110917,0.00036186,30]
[381224560,1756101041136,-457.030685,0.00036186,30]
[381224561,1756101041145,-457.030685,0.00036186,30]
[381224562,1756101041155,-151.0,0.00036186,30]
[381224563,1756101041164,-151.0,0.00036186,30]
[381224564,1756101041173,-151.0,0.00036186,30]
[381224565,1756101041182,-465.752906,0.00036186,30]
[381224566,1756101041191,-280.232876,0.00036186,30]
[381224567,1756101041201,-465.752906,0.00036186,30]
[381224568,1756101041210,-465.752906,0.00036186,30]
[381224569,1756101041220,-151.0,0.00036186,30]
[381224570,1756101041229,-465.752906,0.00036186,30]
[381224571,1756101041238,-151.0,0.00036186,30]
[381224572,1756101041247,-151.0,0.00036186,30]
[381224573,1756101041257,-151.0,0.00036186,30]
[381224574,1756101041267,-151.0,0.00036186,30]
[381224575,1756101041276,-151.0,0.00036186,30]
[381224576,1756101041287,-151.0,0.00036186,30]
[381224577,1756101041296,-151.0,0.00036186,30]
[381224578,1756101041306,-151.0,0.00036186,30]
[381224579,1756101041315,-151.0,0.00036186,30]
[381224580,1756101041325,-151.0,0.00036186,30]
[381224581,1756101041334,-151.0,0.00036186,30]
[381224582,1756101041344,-152.848781,0.00036186,30]
[381224583,1756101041353,-151.630341,0.00036186,30]
[381224584,1756101041363,-152.848781,0.00036186,30]
[381224585,1756101041372,-152.848781,0.00036186,30]
[381224586,1756101041386,-152.848781,0.00036186,30]
[381224587,1756101041396,-151.0,0.00036186,30]
[381224588,1756101041405,-242.190425,0.00036186,30]
[381224589,1756101041415,-242.190425,0.00036186,30]
[381224590,1756101041424,-242.190425,0.00036186,30]
[381224591,1756101041433,-242.190425,0.00036186,30]
[381224592,1756101041443,-118535.9826543,0.00036186,2]
[381224593,1756101041452,-1500.0,0.00036368,5]
[381224594,1756101041461,-264.85274484,0.00036368,5]
[381224595,1756101041471,-1000.0,0.00036391,2]
[381224596,1756101041483,-1000.0,0.00036391,2]
[381224597,1756101041493,-1000.0,0.00036391,2]
[381224598,1756101041502,-151.0,0.00036392,30]
[381224599,1756101041511,-151.0,0.00036392,30]
[381224600,1756101041520,-153.395359,0.00036392,30]
[381224601,1756101041530,-151.0,0.00036392,15]
[381224602,1756101041539,-151.0,0.00036392,15]
[381224603,1756101041548,-151.0,0.00036392,15]
[381224604,1756101041560,-151.0,0.00036392,30]
[381224606,1756101041569,-151.0,0.00036392,30]
[381224608,1756101041579,-151.0,0.000365,10]
[381224610,1756101041588,-502.47997448,0.00036598,5]
[381224612,1756101041597,-502.12566295,0.00036598,5]
[381224614,1756101041606,-1000.0,0.0003661,2]
[381224615,1756101041615,-502.95667087,0.0003661,5]
[381224617,1756101041625,-200.0,0.0003673,120]
[381224620,1756101041637,-521.95909531,0.00036916,5]
[381224621,1756101041646,-170.25,0.00037,7]
[381224623,1756101041656,-580.96973678,0.00037158,2]
[381224625,1756101041665,-6174.68,0.000374,14]
[381224644,1756101041831,-151.0,0.000376,16]
[381224646,1756101041841,-1072.61,0.00037808,120]
[381224648,1756101041851,-151.0,0.000387,13]
[381224650,1756101041860,-2210.71493892,0.00039133,2]
[381224652,1756101041870,-1072.61,0.00039452,120]
[381224654,1756101041888,-163.009185,0.00039654,2]
[381224656,1756101041897,-151.0,0.000398,13]
[381224658,1756101041907,-156.506356,0.00040237,20]
[381224660,1756101041916,-151.0,0.00040614,30]
[381224662,1756101041925,-151.0,0.00040614,30]
[381224664,1756101041935,-270.635709,0.00040614,30]
[381224666,1756101041945,-151.0,0.00040614,30]
[381224667,1756101041954,-152.008388,0.00040614,30]
[381224669,1756101041963,-151.0,0.00040614,30]
[381224671,1756101041973,-158.096637,0.00040614,30]
[381224673,1756101041983,-158.096637,0.00040614,30]
[381224675,1756101041994,-158.096637,0.00040614,30]
[381224677,1756101042003,-151.0,0.00040614,30]
[381224679,1756101042012,-158.096637,0.00040614,30]
[381224681,1756101042021,-151.0,0.00040614,30]
[381224683,1756101042031,-151.0,0.00040614,30]
[381224685,1756101042040,-151.0,0.00040614,30]
[381224687,1756101042049,-151.0,0.00040614,30]
[381224689,1756101042059,-151.0,0.00040614,30]
[381224691,1756101042072,-151.0,0.00040614,30]
[381224693,1756101042081,-151.0,0.00040614,30]
[381224695,1756101042091,-151.0,0.00040614,30]
[381224697,1756101042100,-154.298147,0.00040614,30]
[381224699,1756101042110,-156.0,0.000407,120]
[381224701,1756101042120,-1007.96862511,0.00040733,3]
[381224703,1756101042131,-2015.93725022,0.00040737,3]
[381224705,1756101042140,-1007.96862511,0.00040737,3]
[381224707,1756101042151,-901618.23226892,0.0004074,30]
[381224710,1756101042168,-99725.1075808,0.0004074,30]
[381224712,1756101042179,-453.67243545,0.0004074,30]
[381224769,1756101042694,-4997.10192,0.0004074,30]
[381224854,1756101043550,-151.0,0.00036184,30]
[381224856,1756101043563,-224.184105,0.00036184,30]
[381224858,1756101043574,-174.19649525,0.0004074,61]
[381224865,1756101043630,-2658.16954967,0.0004074,61]
[381224867,1756101043640,-1549.71338717,0.0004074,30]
[381224868,1756101043651,-11580.000011,0.0004074,30]
[381224871,1756101043663,-1242.75558087,0.0004074,30]
[381224982,1756101083924,348.02230637,0.00020763,2]
[381224985,1756101259088,356.55878824,0.00020763,2]
[381224986,1756101259217,356.55878824,0.0002249,2]
[381224987,1756101438150,264.01511945,0.00020763,2]
[381224988,1756101438178,68.77308295,0.00020763,2]
[381224989,1756101438258,291.18967717,0.0002249,2]
[381224990,1756101550782,158.104624,0.00013699,2]
[381224991,1756101550846,158.104624,0.00020548,2]
[381224993,1756101737499,543.0,0.00027397,120]
[381224994,1756101753461,545.0,0.00027397,120]
[381224995,1756101768311,545.0,0.00027397,120]
[381224996,1756101819637,250.0,0.000241,2]
[381224997,1756101828166,250.0,0.000241,2]
[381224998,1756101870000,846.07301451,0.000255,3]
[381224999,1756101976622,385.92061534,0.0002249,2]
[381225021,1756102151854,382.93792112,0.0002249,2]
[381225105,1756102232333,-382.93792112,0.00024216,2]
[381225110,1756102232346,-1109.66206888,0.00025105,2]
[381225114,1756102232363,-4922.66795407,0.00025105,2]
[381225118,1756102232378,-421.18329454,0.00025205,2]
[381225122,1756102232393,-167.80782557,0.00025205,2]
[381225126,1756102232410,-1200.0,0.00025898,2]
[381225129,1756102232425,-260.69648918,0.00025899,2]
[381225131,1756102232436,-382.93792112,0.00025943,4]
[381225134,1756102232447,-1238.67,0.00025999,2]
[381225136,1756102232464,-260.69648918,0.00026214,2]
[381225139,1756102232477,-300.0,0.00026279,2]
[381225141,1756102232489,-300.0,0.00026279,2]
[381225144,1756102232502,-300.0,0.00026279,2]
[381225146,1756102232513,-300.0,0.00026279,2]
[381225148,1756102232524,-300.0,0.00026279,2]
[381225151,1756102232541,-1200.0,0.0002628,2]
[381225153,1756102232553,-3638.56682778,0.00026281,4]
[381225155,1756102232566,-260.69648918,0.00026529,2]
[381225158,1756102232578,-260.69648918,0.00026844,2]
[381225160,1756102232591,-260.69648918,0.00027159,2]
[381225162,1756102232603,-278.84092829,0.0002716,2]
[381225165,1756102232618,-301.2680743,0.0002716,2]
[381225170,1756102232653,-279.16740584,0.0002716,2]
[381225172,1756102232667,-151.15445482,0.00027197,2]
[381225175,1756102232679,-3718.70718859,0.00027259,2]
[381225177,1756102232694,-1603.15313432,0.00027259,2]
[381225180,1756102232710,-663.05179366,0.00027259,2]
[381225183,1756102232725,-1123.95519826,0.00027259,2]
[381225185,1756102232741,-1138.80134258,0.00027259,2]
[381225188,1756102232757,-17266.16913443,0.00027259,2]
[381225191,1756102232770,-1513.4866798,0.0002726,18]
[381225193,1756102232782,-1000.0,0.00027309,2]
[381225195,1756102232795,-158.104624,0.00027397,2]
[381225198,1756102232808,-5604.7783587,0.00027542,2]
[381225200,1756102232821,-382.93792112,0.00027669,8]
[381225203,1756102232834,-150.07,0.00028133,15]
[381225205,1756102232846,-1680.0,0.00028156,2]
[381225207,1756102232859,-420.0,0.00028432,2]
[381225210,1756102232871,-420.0,0.00028432,2]
[381225212,1756102232885,-420.0,0.00028432,2]
[381225215,1756102232898,-424.0,0.00028433,2]
[381225217,1756102232910,-382.93792112,0.00029396,11]
[381225219,1756102232922,-859.27640843,0.00030232,2]
[381225222,1756102232935,-720.0,0.0003061,2]
[381225224,1756102232947,-160.0,0.00030629,2]
[381225226,1756102232960,-587.0,0.0003076,2]
[381225229,1756102232973,-322.0,0.0003076,2]
[381225231,1756102232986,-415.85404846,0.000308,7]
[381225233,1756102232998,-628.01934775,0.00030828,15]
[381225236,1756102233011,-150.0,0.00030864,2]
[381225238,1756102233024,-150.0,0.00030864,10]
[381225241,1756102233038,-16080.1045667,0.00030864,120]
[381225243,1756102233051,-157.0,0.00031,120]
[381225245,1756102233065,-382.93792112,0.00031123,15]
[381225247,1756102233080,-260.0,0.00031177,2]
[381225250,1756102233093,-501.76192137,0.00031717,5]
[381225252,1756102233106,-500.0,0.00031717,5]
[381225255,1756102233122,-200.0,0.00031717,5]
[381225257,1756102233137,-545.28516591,0.00031717,5]
[381225259,1756102233152,-500.0,0.00031717,5]